[Event "41st OBSenEM 2025"]
[Site "Berlin"]
[Date "2025.02.12"]
[Round "8.1"]
[White "Niehaus, Frank"]
[Black "Heinig, Wolfram"]
[Result "1-0"]
[Annotator "TA"]
[ECO "B48"]
[WhiteElo "2109"]
[BlackElo "2196"]
[PlyCount "51"]
[EventDate "2025.02.04"]
[EventType "swiss"]
[EventCountry "GER"]
[SourceTitle "playchess.com"]
[Source "ChessBase"]
[SourceQuality "1"]
[TimeControl "40/5400+30:1800+30"]

{[%evp 15,51,15,20,-20,-20,-5,-14,-15,-14,-9,0,0,19,29,87,104,106,93,109,112,91,92,150,28,35,37,49,41,461,343,443,11,466,441,441,441,441,441]} 1. e4 {[%emt 0:00:11]} c5 {[%emt 0:00:31]} 2. Nf3 {[%emt 0:00:28]} e6 {[%emt 0:00:27]} 3. d4 {[%emt 0:00:13]} cxd4 {[%emt 0:00:18]} 4. Nxd4 {[%emt 0:00:05]} a6 {[%emt 0:00:08]} 5. Nc3 {[%emt 0:00:16]} Qc7 {[%emt 0:00:26]} 6. Bd3 {[%emt 0:00:32]} Nf6 {[%emt 0:00:42]} 7. O-O {[%emt 0:00:40]} Nc6 {[%emt 0:01:49]} 8. Be3 {[%emt 0:01:42]} Ne5 {[%emt 0:03:01]} 9. f4 {[%emt 0:01:50] B48: Sicilian: Taimanov: 5 Nc3 Qc7 6 Be3 a6 without Be2.} Nfg4 {[%emt 0:02:05]} 10. Bd2 {[%emt 0:10:15]} Bc5 {[%emt 0:00:45]} 11. Nce2 {[%emt 0:03:47] The position is equal.} Nxd3 $146 {[%emt 0:17:59]} (11... Nc6 $5 12. c3 d6 $11) (11... Qb6 12. fxe5 Bxd4+ 13. Nxd4 Qxd4+ 14. Kh1 Nf2+ 15. Rxf2 Qxf2 16. Bb4 h5 17. Bc4 Qb6 {1-0 Butkiewicz,L (2397)-Ponizil,C (2377) CZE-chT1E 1213 2012 (4.1)}) 12. cxd3 {[%emt 0:00:05] A sharp opening} e5 {[%emt 0:11:55]} 13. fxe5 {[%emt 0:00:17]} Qxe5 {[%emt 0:00:55][%csl Gg4][%cal Re5h2]} 14. Bf4 {[%emt 0:00:06]} Bxd4+ {[%emt 0:00:22]} (14... Qf6 $11 {remains equal.} 15. Kh1 O-O) 15. Kh1 $16 {[%emt 0:00:05]} Qf6 {[%emt 0:16:00] Hoping for ...Nf2+.} 16. Nxd4 {[%emt 0:00:23]} Qxd4 {[%emt 0:00:31]} 17. Qxg4 {[%emt 0:00:06] Strongly threatening Qg3.} O-O {[%emt 0:00:19][%cal Of7f6] Black is weak on the dark squares} 18. Qg3 {[%emt 0:00:09] White is more active.} Re8 {[%emt 0:01:39] Against Be5} (18... d6 $142) 19. e5 {[%emt 0:09:07]} (19. Bd6 $16 Re6 20. e5) 19... d5 {[%emt 0:10:07][%cal Oc8f5]} 20. exd6 {[%emt 0:00:38][%cal Be5d6,Bd6d7][%mdl 32]} Bf5 {[%emt 0:00:12][%cal Bc8f5,Bf5d3,Bd3b5][%mdl 32]} 21. Rfe1 $40 {[%emt 0:19:57][%mdl 128] White is up to no good.} Qxd3 $2 {[%emt 0:03:40][%mdl 8192]} (21... f6 $14) 22. Qxd3 {[%emt 0:04:49]} Bxd3 {[%emt 0:00:14]} 23. Rxe8+ $1 {[%emt 0:07:56]} Rxe8 {[%emt 0:00:03] [#]} 24. d7 $1 {[%emt 0:00:18] White is clearly winning.} Rd8 {[%emt 0:00:29][%cal Of7f6]} 25. Re1 {[%emt 0:00:06] White wants to mate with Re8+.} Bb5 {[%emt 0:01:40] [#]} 26. Bc7 $1 {[%emt 0:00:18] Weighted Error Value: White=0.24 (precise) /Black=0.52  Loses game:     	---       	Black=2      Mistake:       	White=1     	Black=2      OK:         	White=6     	Black=3      Best:        	White=4     	Black=1      Strong:       	White=3     	---} ({Weaker is} 26. Bg5 f6 (26... Rxd7 27. Re8#) 27. Bd2 Bxd7 $17 (27... Rxd7 28. Bb4 $17)) 1-0

[Event "41st OBSenEM 2025"]
[Site "Berlin"]
[Date "2025.02.12"]
[Round "8.2"]
[White "Meister, Jakob"]
[Black "Postler, Reinhard"]
[Result "1-0"]
[Annotator "TA"]
[ECO "D35"]
[WhiteElo "2418"]
[BlackElo "2189"]
[PlyCount "67"]
[EventDate "2025.02.04"]
[EventType "swiss"]
[EventCountry "GER"]
[SourceTitle "playchess.com"]
[Source "ChessBase"]
[SourceQuality "1"]
[TimeControl "40/5400+30:1800+30"]

{[%evp 15,67,24,17,0,31,25,39,23,30,29,28,12,7,9,21,20,17,21,20,11,18,11,17,3,12,-8,16,0,0,0,20,0,34,48,31,36,50,56,39,54,46,37,58,49,55,41,110,113,163,170,233,225,222,206]} 1. d4 {[%emt 0:00:02]} d5 {[%emt 0:00:10]} 2. c4 {[%emt 0:00:12]} e6 {[%emt 0:00:08]} 3. Nc3 {[%emt 0:00:16]} Nf6 {[%emt 0:00:08]} 4. cxd5 {[%emt 0:00:07]} exd5 {[%emt 0:00:02]} 5. Bg5 {[%emt 0:00:09]} Be7 {[%emt 0:00:10]} 6. e3 {[%emt 0:00:09]} c6 {[%emt 0:00:30]} 7. Bd3 {[%emt 0:00:21]} Nbd7 {[%emt 0:00:26]} 8. Nge2 {[%emt 0:00:16]} h6 {[%emt 0:06:54]} 9. Bf4 {[%emt 0:00:19] D35: Queen's Gambit Declined: Exchange Variation.} Nb6 {[%emt 0:04:00]} 10. Qc2 {[%emt 0:03:05]} Bd6 {[%emt 0:00:27]} 11. h3 {[%emt 0:00:23] White is slightly better.} Bxf4 {[%emt 0:01:43]} 12. Nxf4 {[%emt 0:00:59]} Qd6 {[%emt 0:09:52]} 13. O-O-O {[%emt 0:02:25]} Bd7 {[%emt 0:03:30]} 14. Kb1 {[%emt 0:00:14]} g5 $146 {[%emt 0:08:35]} (14... O-O-O 15. Rc1 Kb8 16. Na4 Nxa4 17. Qxa4 Rc8 18. Rc3 Rc7 19. Ne2 Rhc8 20. Qa3 Qxa3 21. Rxa3 Ne8 22. g4 Nd6 23. Ng3 Rf8 24. Rc3 {½-½ Mekhitarian,K (2559)-Molina,R (2381) BRA-ch 89th Recife 2023 (6)}) 15. Nfe2 {[%emt 0:02:24][%cal Bf4e2,Be2c1,Bc1b3,Bb3c5][%mdl 32]} Qe7 {[%emt 0:01:31]} 16. Nc1 {[%emt 0:01:56]} O-O-O {[%emt 0:00:34]} 17. Nb3 {[%emt 0:00:02]} Kb8 {[%emt 0:00:42]} 18. Rhe1 {[%emt 0:01:27]} Rhe8 {[%emt 0:01:38]} 19. f3 {[%emt 0:01:03]} Bc8 {[%emt 0:01:51]} 20. e4 {[%emt 0:02:12][%cal Be3e4,Be4e5][%mdl 32]} Be6 {[%emt 0:13:46]} 21. Bf1 {[%emt 0:06:46]} Nh5 {[%emt 0:02:41]} 22. Nc5 {[%emt 0:04:41]} Qc7 {[%emt 0:03:31]} 23. e5 {[%emt 0:01:52]} Nd7 {[%emt 0:04:20]} 24. Nxe6 {[%emt 0:03:58]} Rxe6 {[%emt 0:00:46]} 25. Bd3 {[%emt 0:00:58]} Ng7 {[%emt 0:03:12]} 26. g3 {[%emt 0:01:22][%cal Bg2g3,Bg3g4][%mdl 32]} f6 {[%emt 0:09:06]} 27. f4 {[%emt 0:00:28]} fxe5 {[%emt 0:00:39]} 28. fxe5 {[%emt 0:01:51] NOTEXT-51077 White (e5)} Nb6 {[%emt 0:02:39]} 29. Rf1 {[%emt 0:01:06]} a6 {[%emt 0:01:50]} 30. Ne2 {[%emt 0:05:29][%cal Bc3e2,Be2g3,Bg3f5,Bf5d6][%mdl 32]} Qe7 {[%emt 0:02:45]} (30... Rc8 $14) 31. g4 $16 {[%emt 0:01:05]} Qe8 {[%emt 0:04:17]} (31... Qc7 $16 32. Qc1 Nc8) 32. Ng3 {[%emt 0:00:42] White is clearly better.} Re7 {[%emt 0:01:18]} (32... c5 {was necessary.}) 33. Nf5 $18 {[%emt 0:02:22]} Rc7 {[%emt 0:00:02]} 34. Nd6 {[%emt 0:03:19] Weighted Error Value: White=0.06 (flawless) /Black=0.14 (very precise)   Mistake:       	---       	Black=3      Inaccurate:     	---       	Black=2      OK:         	White=13    	Black=10} 1-0

[Event "41st OBSenEM 2025"]
[Site "Berlin"]
[Date "2025.02.12"]
[Round "8.3"]
[White "Federau, Juergen"]
[Black "Ahlberg, Matthias"]
[Result "1-0"]
[Annotator "TA"]
[ECO "D19"]
[WhiteElo "2124"]
[BlackElo "2067"]
[PlyCount "141"]
[EventDate "2025.02.04"]
[EventType "swiss"]
[EventCountry "GER"]
[SourceTitle "playchess.com"]
[Source "ChessBase"]
[SourceQuality "1"]
[TimeControl "40/5400+30:1800+30"]

{[%evp 20,141,16,0,115,120,122,134,145,139,171,179,411,411,399,433,432,420,438,413,472,479,433,188,186,179,178,185,172,164,167,167,172,172,176,156,189,185,180,185,158,71,91,69,178,181,191,187,184,181,245,233,243,255,252,204,204,204,241,260,248,252,255,250,369,353,568,515,516,511,529,529,529,529,522,522,511,496,515,467,465,460,488,484,526,421,454,320,458,458,460,337,337,317,321,313,288,-29972,278,180,278,258,834,816,816,583,579,577,532,498,563,561,651,651,643,626,628,600,5068,5068,3786,3809,4185,1721]} 1. d4 {[%emt 0:00:04]} c6 {[%emt 0:00:10]} 2. c4 {[%emt 0:00:05]} d5 {[%emt 0:00:04]} 3. Nf3 {[%emt 0:00:07]} Nf6 {[%emt 0:00:09]} 4. Nc3 {[%emt 0:00:48]} dxc4 {[%emt 0:00:24]} 5. a4 {[%emt 0:00:17]} Bf5 {[%emt 0:00:24]} 6. e3 {[%emt 0:00:08]} e6 {[%emt 0:00:40]} 7. Bxc4 {[%emt 0:00:11]} Bb4 {[%emt 0:02:50]} 8. O-O {[%emt 0:00:08]} Nbd7 {[%emt 0:01:21]} 9. Qe2 {[%emt 0:01:13]} O-O {[%emt 0:04:02]} 10. Ne5 {[%emt 0:16:03]} Nxe5 {[%emt 0:09:09]} 11. dxe5 {[%emt 0:00:18]} Bxc3 {[%emt 0:01:23] D19: Slav Defence: 5 a4 Bf5 6 e3: Main line with 9 Qe2.} (11... Ne4 $11 {remains equal.}) 12. bxc3 $16 {[%emt 0:00:29]} Nd7 {[%emt 0:10:53]} 13. e4 {[%emt 0:01:25][%cal Be3e4,Be4f5][%mdl 32]} Bg6 {[%emt 0:01:51] White is clearly better.} 14. f4 {[%emt 0:00:27] White is more active.} h6 $146 {[%emt 0:04:16]} (14... Qa5 15. Ba3 Rfe8 16. Bd6 Qxc3 17. Rae1 Nb6 18. Ba2 Qd4+ 19. Kh1 Qxa4 20. Bb1 Rad8 {½-½ Zuchowski Filho,E-Faini,M BRA TBI-C-IX-X-S-013 corr 1993 (1)}) 15. f5 {[%emt 0:05:54]} exf5 {[%emt 0:04:09]} (15... Bh7) 16. exf5 $18 {[%emt 0:00:20]} Bh7 {[%emt 0:08:27]} 17. e6 {[%emt 0:03:30]} fxe6 {[%emt 0:00:50]} 18. Bxe6+ {[%emt 0:01:34] This pair of bishops is nice.} Kh8 {[%emt 0:01:26]} 19. Rd1 $1 {[%emt 0:18:43]} Qe8 {[%emt 0:01:15]} 20. Rxd7 {[%emt 0:03:08][%cal Oc1h6]} Bxf5 {[%emt 0:01:32] [#]} 21. Bxh6 $1 {[%emt 0:03:38][%mdl 512]} Qxe6 {[%emt 0:03:10] Black is weak on the dark squares} 22. Bxg7+ {[%emt 0:01:35] White attacks} Kg8 {[%emt 0:00:27][%cal Bh8g8,Bg8f7,Bf7e6][%mdl 32]} 23. Qxe6+ {[%emt 0:00:47]} Bxe6 {[%emt 0:00:02]} 24. Rxb7 {[%emt 0:00:39]} Rf7 {[%emt 0:07:28]} 25. Rxf7 {[%emt 0:00:31]} Kxf7 {[%emt 0:00:16][%mdl 4096] Endgame KRB-KRB. White is two pawns up.} 26. Bd4 {[%emt 0:00:20]} a5 {[%emt 0:00:29]} 27. Rb1 {[%emt 0:08:46]} Bd5 {[%emt 0:03:07]} 28. Rb7+ {[%emt 0:04:35]} Ke6 {[%emt 0:00:29]} 29. Ra7 {[%emt 0:03:34]} Rb8 {[%emt 0:04:58]} 30. c4 {[%emt 0:03:31]} (30. Rxa5 Rb1+ 31. Kf2 Rb2+ 32. Kg3 Rxg2+ 33. Kh3 Rd2 $16) (30. h3 $142) 30... Bxc4 $16 {[%emt 0:01:33]} 31. Rxa5 {[%emt 0:00:25]} Rb4 {[%emt 0:04:14] [#]} ({Better is} 31... Bd5 $14) 32. Re5+ $1 $18 {[%emt 0:08:50]} Kf7 {[%emt 0:02:41]} 33. a5 {[%emt 0:02:38]} Bd5 {[%emt 0:01:11]} 34. Bc3 {[%emt 0:01:34]} Rb3 {[%emt 0:04:08]} (34... Rc4) 35. Re3 {[%emt 0:01:25]} Ra3 {[%emt 0:00:36]} 36. h4 {[%emt 0:04:55]} Kg6 {[%emt 0:01:47]} 37. Kf2 {[%emt 0:03:05]} Ra2+ {[%emt 0:01:21]} 38. Re2 {[%emt 0:00:06]} Ra4 {[%emt 0:00:24]} 39. g3 {[%emt 0:00:18]} Ra3 {[%emt 0:01:27]} 40. Re3 {[%emt 0:00:50]} Ra2+ {[%emt 0:01:07]} 41. Ke1 {[%emt 0:12:50]} Rc2 {[%emt 0:03:10]} (41... Rg2 42. Kd1 Kf5) 42. Bd2 {[%emt 0:02:26]} Kh5 $2 {[%emt 0:02:20]} (42... Ra2 43. g4 Kf7) 43. Ra3 {[%emt 0:01:48]} Kg4 {[%emt 0:04:09]} 44. a6 {[%emt 0:01:39][%cal Ba5a6,Ba6a7][%mdl 32]} c5 {[%emt 0:00:13]} 45. a7 {[%emt 0:00:46]} Ba8 {[%emt 0:00:09]} 46. Kd1 {[%emt 0:01:53]} Rb2 {[%emt 0:00:41]} 47. Kc1 {[%emt 0:00:42]} Rb7 {[%emt 0:00:39]} 48. Bf4 {[%emt 0:00:29]} Kf5 {[%emt 0:03:34]} 49. Kc2 {[%emt 0:02:15]} Ke4 {[%emt 0:00:27]} 50. Bb8 {[%emt 0:03:04]} Kd4 {[%emt 0:00:35]} 51. Rd3+ {[%emt 0:00:51]} Kc4 {[%emt 0:00:16]} 52. Re3 {[%emt 0:01:50]} Rf7 {[%emt 0:01:04]} 53. Rc3+ {[%emt 0:01:39]} Kd4 {[%emt 0:00:52]} (53... Kb4 $142) 54. Rd3+ {[%emt 0:01:18]} Kc4 {[%emt 0:00:24]} 55. Rd2 {[%emt 0:00:53]} Be4+ {[%emt 0:00:37]} 56. Kb2 {[%emt 0:02:27]} Rb7+ {[%emt 0:00:34]} 57. Ka1 {[%emt 0:02:33]} Rf7 {[%emt 0:01:25]} 58. Ra2 $4 {[%emt 0:01:17][%mdl 8192]} (58. Re2 $18 Ba8 59. h5) 58... Kb3 $4 {[%emt 0:01:20][%mdl 8192]} (58... Rf1+ {mates} 59. Kb2 Rb1+ 60. Ka3 Rb3+ 61. Ka4 Bc6+ 62. Ka5 Rb5+ 63. Ka4 Rxb8+ (63... Rb2+ $2 64. Ka5 $19) 64. Ka5 Rb5+ 65. Ka4 Rb2+ (65... Rb7+ $2 66. Ka5 $19) 66. Ka5 Rxa2+ 67. Kb6 Kd5 68. g4 Kd6 69. g5 Rb2+ 70. Ka5 Kc7 71. a8=N+ Kb7 (71... Bxa8 72. Ka4 Bd5 73. h5 Kc6 74. h6 Ra2#) 72. Nb6 Ra2+ 73. Na4 Rxa4#) 59. Bf4 {[%emt 0:00:40]} (59. a8=B $2 Rf1#) 59... Rd7 {[%emt 0:01:00]} (59... Ba8 {was necessary.} 60. Rb2+ Kc3 61. Be5+ Kd3) 60. Rb2+ {[%emt 0:00:42]} (60. a8=R $2 {is a self mate.} Rd1+) 60... Ka3 $2 {[%emt 0:00:11]} (60... Kc3 61. Be5+ Kc4) 61. Rd2 {[%emt 0:00:59] White is clearly winning.} Re7 {[%emt 0:00:49]} 62. Bd6 {[%emt 0:00:33]} Rf7 {[%emt 0:00:30]} 63. Bxc5+ {[%emt 0:00:53]} Kb3 {[%emt 0:00:10] ( -> ...Rf1+)} 64. Rb2+ {[%emt 0:00:22]} Kc3 {[%emt 0:00:11]} 65. Bf2 {[%emt 0:00:35]} Rd7 {[%emt 0:00:27] ( -> ...Rd1+)} 66. Be1+ {[%emt 0:00:23]} Kc4 {[%emt 0:00:55]} 67. Rb4+ {[%emt 0:00:29]} Kd3 {[%emt 0:00:09]} 68. Bf2 {[%emt 0:00:34][%cal Ob4e4] Hoping for Rxe4!.} Bc6 {[%emt 0:04:19] [#]} 69. Rd4+ $1 {[%emt 0:00:33][%mdl 512]} Rxd4 {[%emt 0:00:09]} 70. Bxd4 {[%emt 0:00:05]} Kxd4 {[%emt 0:00:07]} 71. h5 {[%emt 0:00:08] Weighted Error Value: White=0.19 (very precise) /Black=0.32  Missed win:     	White=1     	Black=1      Mistake:       	White=2     	Black=7      Inaccurate:     	White=1     	---        OK:         	White=28    	Black=15     Best:        	White=4     	Black=6      Strong:       	White=2     	---} (71. g4 $142 Ke5 72. Kb2) 1-0

[Event "41st OBSenEM 2025"]
[Site "Berlin"]
[Date "2025.02.13"]
[Round "9.1"]
[White "Meister, Jakob"]
[Black "Niehaus, Frank"]
[Result "1-0"]
[Annotator "TA"]
[ECO "B07"]
[WhiteElo "2418"]
[BlackElo "2109"]
[PlyCount "123"]
[EventDate "2025.02.04"]
[EventType "swiss"]
[EventCountry "GER"]
[SourceTitle "playchess.com"]
[Source "ChessBase"]
[SourceQuality "1"]
[TimeControl "40/5400+30:1800+30"]

{[%evp 9,123,37,42,41,66,43,47,34,39,11,79,19,25,26,42,22,84,42,34,46,108,88,103,93,152,152,148,150,162,156,147,151,164,154,121,96,97,79,79,54,51,0,0,0,0,0,0,-63,-46,-79,-41,-42,28,41,47,27,64,26,64,48,63,28,180,62,114,122,158,64,79,75,122,88,169,104,161,0,160,93,157,91,143,109,152,103,119,0,141,152,183,175,169,169,195,195,197,197,212,207,271,267,295,189,233,0,385,343,483,470,847,852,1178,1042,1857,1550,29989,1940]} 1. d4 {[%emt 0:00:58]} Nf6 {[%emt 0:00:30]} 2. Nc3 {[%emt 0:00:30]} g6 {[%emt 0:01:06]} 3. e4 {[%emt 0:01:20]} d6 {[%emt 0:00:07]} 4. Be3 {[%emt 0:00:10]} c6 {[%emt 0:01:57]} 5. h3 {[%emt 0:01:23]} Nbd7 {[%emt 0:01:12]} 6. Nf3 {[%emt 0:04:16] B07: Pirc Defence: Miscellaneous Systems.} Qa5 {[%emt 0:02:15]} 7. Bd3 {[%emt 0:04:29]} Bg7 {[%emt 0:00:47]} 8. O-O {[%emt 0:00:59] White is slightly better.} O-O {[%emt 0:00:05]} 9. Nd2 {[%emt 0:03:18]} Qc7 {[%emt 0:02:29]} (9... e5 $11) 10. a4 {[%emt 0:05:57]} (10. f4 $1 $16) 10... e5 $11 {[%emt 0:02:10]} 11. dxe5 {[%emt 0:08:33]} dxe5 {[%emt 0:00:25]} 12. a5 $146 {[%emt 0:00:23]} (12. Bc4 a5 13. Qe2 Nh5 14. Bb3 Nf4 15. Qf3 b6 16. Kh2 Nc5 17. Bxc5 bxc5 18. Ne2 {0-1 Matras,O (2200)-Priehoda,V (2256) Ceske Budejovice op-A 2023 (9)}) 12... Re8 {[%emt 0:01:27]} (12... Rd8 $11 {remains equal.}) 13. b4 {[%emt 0:14:09]} Nf8 {[%emt 0:03:40][%cal Bd7f8,Bf8e6,Be6d4,Bd4f5,Bf5d6][%mdl 32]} 14. b5 {[%emt 0:02:27][%cal Oe3a7]} a6 {[%emt 0:09:16]} ({Black should try} 14... Bd7 $14) 15. bxa6 $1 $16 {[%emt 0:03:15]} bxa6 {[%emt 0:00:06]} 16. Nc4 {[%emt 0:00:13]} c5 {[%emt 0:09:02]} (16... Ne6 $142) 17. Nb6 {[%emt 0:03:53]} Ra7 {[%emt 0:01:02]} 18. Rb1 {[%emt 0:01:06] White is much more active.} Ne6 {[%emt 0:00:27]} 19. Ncd5 {[%emt 0:01:09][%csl Ob6] Strong Square White (b6)} Nxd5 {[%emt 0:01:17]} 20. exd5 {[%emt 0:01:02][%csl Od5] White has a strong passed pawn} (20. Nxd5 Qxa5 21. f3 Qd8 $14) 20... Nd4 {[%emt 0:02:53]} 21. c3 {[%emt 0:06:38]} Nf5 {[%emt 0:05:56]} 22. Bd2 {[%emt 0:05:39]} Nd6 {[%emt 0:01:25]} 23. Re1 {[%emt 0:01:50]} c4 {[%emt 0:06:18]} 24. Bf1 {[%emt 0:01:10]} Bd7 {[%emt 0:03:13]} 25. Be3 {[%emt 0:06:12]} (25. Nxd7 $14 Qxd7 26. Be3) 25... Bb5 $1 $11 {[%emt 0:01:55]} 26. Qc2 {[%emt 0:03:22]} Rb7 {[%emt 0:05:27]} 27. Rb4 {[%emt 0:01:40]} Bf8 {[%emt 0:03:26]} 28. g4 {[%emt 0:03:15] Prevents Nf5} (28. Rbb1 $11) 28... f5 $15 {[%emt 0:07:18]} 29. Rbb1 {[%emt 0:00:49]} f4 {[%emt 0:03:20]} 30. Bc1 {[%emt 0:00:43][%cal Be3c1,Bc1a3,Ba3b4][%mdl 32]} Rxb6 {[%emt 0:05:40]} (30... Nf7 $15) 31. axb6 $11 {[%emt 0:00:03]} Qxb6 {[%emt 0:00:05]} 32. Ba3 $1 $36 {[%emt 0:02:32][%mdl 2048] White has good play.} Qc7 {[%emt 0:00:34]} 33. Bb4 {[%emt 0:00:32]} Qf7 {[%emt 0:01:16]} 34. Rbd1 {[%emt 0:00:22]} Qd7 {[%emt 0:01:55]} 35. Qd2 {[%emt 0:02:12]} Bg7 $2 {[%emt 0:01:26] [#]} (35... Qd8 $11 {and Black has nothing to worry.}) 36. Bg2 {[%emt 0:00:36]} ({White has to play} 36. Bxd6 $1 $18 Qxd6 37. Re4) 36... Rd8 {[%emt 0:03:01]} (36... Bf8 $14) 37. Qa2 $16 {[%emt 0:00:52]} Re8 {[%emt 0:05:30] [#]} 38. Be4 {[%emt 0:05:41]} (38. Bxd6 $1 $16 Qxd6 39. Re4) 38... Rd8 {[%emt 0:02:22]} 39. Qe2 {[%emt 0:00:23]} Re8 {[%emt 0:00:17]} (39... Bf6 $142) 40. Kg2 {[%emt 0:00:37]} Ra8 {[%emt 0:00:34]} (40... Bf6 $16) 41. Ra1 {[%emt 0:31:24]} (41. Bxd6 $18 Qxd6 42. g5) 41... Rd8 {[%emt 0:30:19]} (41... Bf6 $16 42. Qc2 Kg7) 42. Rad1 {[%emt 0:01:23]} Ra8 $1 {[%emt 0:00:51]} 43. Rb1 {[%emt 0:02:11]} (43. Bxd6 $142 Qxd6 44. g5) 43... Rd8 {[%emt 0:00:25]} (43... Bf6 $142 44. Bxd6 Qxd6) 44. Red1 {[%emt 0:01:04]} (44. Bxd6 $142 Qxd6 45. h4) 44... Re8 {[%emt 0:00:39]} (44... Bf6 $142) 45. f3 {[%emt 0:00:00]} Rd8 {[%emt 0:00:00]} 46. Bc2 {[%emt 0:00:00]} ({Better is} 46. Bxd6 Qxd6 47. g5) 46... Re8 {[%emt 0:00:00]} 47. Be4 {[%emt 0:00:00]} Rd8 $1 {[%emt 0:00:00]} 48. h4 {[%emt 0:00:00][%cal Bh3h4,Bh4h5][%mdl 32]} Re8 {[%emt 0:00:00]} 49. Rh1 {[%emt 0:00:00]} Rd8 {[%emt 0:00:00]} 50. Rbd1 {[%emt 0:00:00]} Qc7 {[%emt 0:00:00]} 51. h5 {[%emt 0:00:00]} g5 {[%emt 0:00:00]} 52. Bc2 {[%emt 0:00:00]} Bf6 {[%emt 0:00:00]} 53. Bxd6 {[%emt 0:00:00]} Qxd6 {[%emt 0:00:00]} 54. Qe4 {[%emt 0:00:00]} Rd7 {[%emt 0:00:00]} 55. Qf5 {[%emt 0:00:00]} Re7 {[%emt 0:00:00][%cal Oe5e4]} 56. Qe4 $2 {[%emt 0:00:00]} (56. Rhe1 $18) 56... Rc7 $2 {[%emt 0:00:00][%mdl 8192]} (56... Rd7 $1 $11 57. Rhe1 Kh8) 57. Ra1 $18 {[%emt 0:00:00]} Rb7 {[%emt 0:00:00]} (57... Rd7 $142 58. Rhd1 Qc5) 58. Rhb1 {[%emt 0:00:00]} Bd8 {[%emt 0:00:00]} (58... Qd7 $142 59. d6 Kf8 60. Rxb5 Rxb5 61. Rxa6 Rb8 62. Qxc4 (62. Qxh7 Qxh7 63. Bxh7 Bd8 $18) 62... Rb2) 59. Ba4 {[%emt 0:00:00]} Bb6 {[%emt 0:03:09]} 60. Bxb5 {[%emt 0:00:00]} Qc5 {[%emt 0:00:11] [#]} 61. Ra2 $1 {[%emt 0:00:00] Threatening mate with d6.} axb5 {[%emt 0:02:09]} (61... Ba7 62. Qxe5) 62. Qxe5 {[%emt 0:00:00] Weighted Error Value: White=0.34/Black=0.68  Loses game:     	---       	Black=1      Missed win:     	White=1     	---        Mistake:       	White=9     	Black=14     Inaccurate:     	White=5     	Black=6      OK:         	White=14    	Black=14     Best:        	White=1     	---        Strong:       	White=2     	Black=3} (62. Ra8+ $142 Qf8 63. Rxf8+ Kxf8 64. Rxb5 (64. Qf5+ Kg8 $18) 64... h6 65. d6 (65. Qxe5 Kf7 66. d6 Rb8 67. Qe7+ Kg8 68. d7 Ra8 69. Rxb6 Kh8 70. d8=Q+ Rxd8 71. Qxd8+ Kh7 72. Rb7#) (65. Qf5+ Kg7 66. d6 Rf7 67. Qg6+ Kf8 68. Rxb6 Ke8 69. d7+ Ke7 70. Qd6+ Kd8 71. Rb8#) 65... Rb8 66. Rxe5 (66. Qxe5 Kf7 67. Qf5+ Kg8 68. Qg6+ Kh8 69. Qxh6+ Kg8 70. Rxg5+ Kf7 71. Qh7+ Kf8 72. Qg8#) (66. Qf5+ Kg8 67. Rxe5 Be3 68. Qg6+ Kh8 69. Qxh6+ Kg8 70. Rxg5+ Kf7 71. Qh7+ Kf8 72. Qg8#) 66... Be3 67. Qg6 (67. Qxc4 Rb2+ 68. Kh3 Bb6 69. Rf5+ Kg7 70. Qf7+ Kh8 71. Qf8+ Kh7 72. Rf7#) (67. Qf5+ Kg8 68. Qg6+ Kh8 69. Qxh6+ Kg8 70. Rxg5+ Kf7 71. Qh7+ Kf8 72. Qg8#)) 1-0

[Event "41st OBSenEM 2025"]
[Site "Berlin"]
[Date "2025.02.13"]
[Round "9.3"]
[White "Heinig, Wolfram"]
[Black "Hildebrand, Gerald"]
[Result "1-0"]
[Annotator "RC"]
[ECO "E01"]
[WhiteElo "2196"]
[BlackElo "2016"]
[PlyCount "75"]
[EventDate "2025.02.04"]
[EventType "swiss"]
[EventCountry "GER"]
[SourceTitle "playchess.com"]
[Source "ChessBase"]
[SourceQuality "1"]
[TimeControl "40/5400+30:1800+30"]

1. d4 {[%emt 0:00:08]} d5 {[%emt 0:00:08]} 2. Nf3 {[%emt 0:00:18]} Nf6 {[%emt 0:00:12]} 3. c4 {[%emt 0:00:16]} c6 {[%emt 0:00:21]} 4. Nc3 {[%emt 0:01:05]} e6 {[%emt 0:00:24]} 5. g3 {[%emt 0:01:40]} Nbd7 {[%emt 0:02:26]} 6. Bg2 {[%emt 0:00:13]} dxc4 {[%emt 0:03:37]} 7. O-O {[%emt 0:00:24]} Bb4 {[%emt 0:01:40]} 8. Qc2 {[%emt 0:05:38]} h6 {[%emt 0:01:32]} 9. Rd1 {[%emt 0:01:04]} Qa5 {[%emt 0:04:29]} 10. Bd2 {[%emt 0:07:35]} Nd5 {[%emt 0:03:34]} 11. Ne4 {[%emt 0:02:05]} Bxd2 {[%emt 0:00:15]} 12. Nd6+ {[%emt 0:00:31]} Ke7 {[%emt 0:00:43]} 13. Nxc4 {[%emt 0:00:18]} Qc7 {[%emt 0:04:32]} 14. Qxd2 {[%emt 0:02:05]} f6 {[%emt 0:05:11]} 15. Rac1 {[%emt 0:00:56]} Kf7 {[%emt 0:03:26]} 16. e4 {[%emt 0:03:42]} N5b6 {[%emt 0:00:12]} 17. Ne3 {[%emt 0:00:49]} Qd6 {[%emt 0:04:56]} 18. Qe2 {[%emt 0:02:42]} Qe7 {[%emt 0:02:31]} 19. Nh4 {[%emt 0:06:27]} Nf8 {[%emt 0:05:19]} 20. Nf3 {[%emt 0:04:12]} Nh7 {[%emt 0:04:27]} 21. Qc2 {[%emt 0:02:42]} Bd7 {[%emt 0:05:00]} 22. Qb3 {[%emt 0:00:26]} Rad8 {[%emt 0:01:17]} 23. a4 {[%emt 0:00:37]} Bc8 {[%emt 0:00:59]} 24. a5 {[%emt 0:02:52]} Nd7 {[%emt 0:00:20]} 25. a6 {[%emt 0:02:40]} Nb6 {[%emt 0:00:26]} 26. Nf5 {[%emt 0:04:22]} Qd7 {[%emt 0:02:32]} 27. axb7 {[%emt 0:03:41]} Bxb7 {[%emt 0:00:50]} 28. e5 {[%emt 0:00:29]} Nc8 {[%emt 0:01:58]} 29. exf6 {[%emt 0:03:12]} gxf6 {[%emt 0:00:09]} 30. Nxh6+ {[%emt 0:00:46]} Kg7 {[%emt 0:00:15]} 31. Ng4 {[%emt 0:01:32]} Nf8 {[%emt 0:03:47]} 32. Ne3 {[%emt 0:02:45]} Rh5 {[%emt 0:01:03]} 33. Rc5 {[%emt 0:02:11]} Rh8 {[%emt 0:01:33]} 34. h4 {[%emt 0:00:33]} Qe7 {[%emt 0:03:40]} 35. Rdc1 {[%emt 0:03:47]} Nb6 {[%emt 0:01:43]} 36. Qa3 {[%emt 0:01:14]} Nc8 {[%emt 0:01:53]} 37. d5 {[%emt 0:06:18]} exd5 {[%emt 0:05:57]} 38. Nf5+ {[%emt 0:00:30]} 1-0